bitfinex/quotes_ETHUSD_20220118
["timestamp","ask_amount","ask_price","bid_price","bid_amount"]
[1642518390975,0.01364217,3130.1,3130.0,3.86420349]
[1642518391374,0.01364217,3130.1,3130.0,10.01420349]
[1642518391777,0.01364217,3130.1,3130.0,10.14190349]
[1642518392179,0.01364217,3130.1,3130.0,28.94190349]
[1642518392827,1.5653385,3130.6,3130.3,0.02728433]
[1642518393029,1.5653385,3130.6,3130.4,0.82300918]
[1642518393227,0.00227369,3130.5,3130.3,0.94692351]
[1642518393435,0.00227369,3130.5,3130.0,4.6064912]
[1642518393627,0.00170527,3130.4,3130.0,5.84006796]
[1642518394027,0.00113684,3130.3,3130.0,5.64696796]
[1642518394228,0.00113684,3130.3,3130.2,5.24845]
[1642518394433,1.5653385,3130.6,3130.3,6.15]
[1642518394629,1.5653385,3130.6,3130.3,6.19703927]
[1642518394832,0.1277,3131.4,3130.4,6.15]
[1642518395032,0.1277,3131.4,3130.6,18.8]
[1642518395228,0.00227369,3130.9,3130.8,3.03355962]
[1642518395428,0.1277,3131.9,3130.9,6.15]
[1642518395628,0.1277,3132.1,3130.9,7.283805]
[1642518395828,0.00170528,3131.2,3130.9,7.283805]
[1642518396229,0.007,3132.2,3131.0,6.20094715]
[1642518396481,0.1277,3132.3,3131.9,1.32106639]
[1642518396780,4.87436031,3132.8,3131.6,0.8071]
[1642518396781,0.00568424,3132.1,3131.6,0.8071]
[1642518396980,0.00568424,3132.1,3131.6,0.83884646]
[1642518397179,0.00511581,3132.0,3131.7,20.46336357]
[1642518397582,0.1277,3132.8,3131.8,14.52898522]
[1642518397782,0.22993,3133.0,3132.0,6.15]
[1642518397988,0.22993,3133.0,3131.9,24.95]
[1642518397989,0.00397897,3132.7,3132.2,18.8]
[1642518398180,0.00397897,3132.7,3132.3,0.384]
[1642518398379,0.00341054,3132.6,3132.4,18.25389843]
[1642518398581,2.5217901,3133.2,3132.5,6.16244474]
[1642518398582,0.00343061,3133.2,3132.5,6.16244474]
[1642518398781,0.00343061,3133.2,3132.7,18.25389843]
[1642518398982,0.00170527,3132.9,3132.7,18.67039061]
[1642518399181,10.24456891,3133.6,3132.9,18.25389843]
[1642518399482,23.04143885,3133.7,3133.0,6.534]
[1642518399483,0.00113685,3133.1,3133.0,6.534]
[1642518399681,0.255271,3134.3,3133.2,6.3247]
[1642518399882,0.255271,3134.3,3133.5,6.15]
[1642518400087,12.16582639,3135.0,3133.8,6.15]
[1642518400348,7.369e-05,3134.2,3134.0,1.62513744]
[1642518400545,0.00405265,3134.9,3134.0,2.33942516]
[1642518400745,0.00405265,3134.9,3134.8,2.02194467]
[1642518400947,0.107247,3134.9,3134.8,2.97933775]
[1642518401146,0.107247,3134.9,3134.7,0.81313627]
[1642518401347,0.107247,3134.9,3134.7,0.03261663]
[1642518401547,0.00348423,3134.8,3134.6,0.2726]
[1642518401848,14.92730235,3135.1,3134.7,2.25054886]
[1642518401849,8.264e-05,3135.1,3134.7,2.25054886]
[1642518402047,4.21784802,3135.8,3135.1,0.03961245]
[1642518402246,4.21784802,3135.8,3135.2,0.30320532]
[1642518402448,4.21784802,3135.8,3135.2,0.384]
[1642518402651,4.21784802,3135.8,3135.2,0.72047117]
[1642518402847,2.18208334,3135.6,3135.2,0.72047117]
[1642518403147,0.00397896,3135.5,3134.9,0.1275]
[1642518403347,0.00397896,3135.5,3134.6,1.384]
[1642518403348,0.00397896,3135.5,3134.6,1.0]
[1642518403548,0.00341054,3135.4,3134.8,2.72026902]
[1642518403746,0.00341054,3135.4,3134.8,2.75458457]
[1642518403980,17.6752055,3136.1,3135.0,0.02028307]
[1642518404176,17.6752055,3136.1,3135.0,1.61423307]
[1642518404377,0.00170527,3135.7,3135.2,0.79698]
[1642518404576,17.6752055,3136.1,3135.5,6.15]
[1642518404777,17.67216864,3136.1,3135.9,10.86673924]
[1642518404979,0.00170527,3136.0,3135.6,7.24924134]
[1642518405183,17.67216864,3136.1,3135.9,1.59347]
[1642518405480,17.67216864,3136.1,3135.9,1.6317104]
[1642518405781,17.67216864,3136.1,3136.0,6.67820291]
[1642518406376,5.08396864,3136.1,3136.0,7.47500291]
[1642518406577,5.08396864,3136.1,3136.0,5.67401137]
[1642518406781,3.12746119,3136.1,3136.0,2.74838009]
[1642518406978,0.1275,3136.9,3136.1,2.28805496]
[1642518407177,0.0033576,3137.7,3136.2,0.03227131]
[1642518407178,0.1308576,3137.7,3136.2,0.03227131]
[1642518407377,0.00397897,3136.7,3136.4,1.30144995]
[1642518407577,0.1308576,3137.7,3136.4,1.63776687]
[1642518407833,0.7999976,3137.7,3136.5,0.00113685]
[1642518408142,0.7999976,3137.7,3136.6,4.45]
[1642518408143,0.26569997,3137.6,3136.6,4.45]
[1642518408325,0.26683682,3137.6,3136.5,0.00511581]
[1642518408526,0.26683682,3137.6,3136.4,5.28252332]
[1642518408728,3.11405716,3136.7,3136.4,5.28252332]
[1642518409027,0.39614532,3137.9,3136.4,5.28252332]
[1642518409028,0.79672,3138.0,3136.4,6.15]
[1642518409229,0.007,3138.4,3137.3,0.01218884]
[1642518409427,0.00170527,3137.8,3137.3,0.01218884]
[1642518409632,0.00170527,3137.8,3137.3,0.80864884]
[1642518409838,0.00113685,3137.7,3137.4,3.4738676]
[1642518410131,0.1274,3138.3,3137.5,1.59255]
[1642518410332,0.007,3138.4,3137.5,1.59255]
[1642518410333,0.007,3138.4,3137.5,0.33585482]
[1642518410531,0.00284212,3138.2,3137.4,4.14700563]
[1642518410731,0.00284212,3138.2,3137.5,3.4738676]
[1642518410930,0.00341054,3138.1,3137.5,8.05586495]
[1642518411231,0.00284212,3138.0,3137.5,4.58199735]
[1642518411481,0.00284212,3138.0,3137.6,1.59255]
[1642518411686,0.0022737,3137.9,3137.6,1.62603107]
[1642518411885,0.1274,3139.5,3138.0,2.2]
[1642518411886,1.89732822,3138.8,3138.0,2.2]
[1642518412080,1.89732822,3138.8,3137.6,1.62603107]
[1642518412081,1.89732822,3138.8,3137.7,0.79739685]
[1642518412284,1.89732822,3138.8,3137.8,6.15]
[1642518412285,1.84960191,3138.8,3137.8,6.15]
[1642518412482,0.00227369,3138.7,3138.0,0.00588765]
[1642518412892,0.02885974,3138.4,3137.6,1.70667139]
[1642518413099,0.01289464,3137.7,3136.8,1.0]
[1642518413583,0.01289464,3137.7,3137.0,4.071686]
[1642518413791,5.3,3138.1,3136.7,6.49730401]
[1642518413984,0.7968235,3137.9,3136.9,6.42596826]
[1642518414185,0.384,3138.2,3137.0,3.4738676]
[1642518414386,1.11716781,3137.7,3137.0,0.00170527]
[1642518414586,0.92806896,3138.0,3137.0,0.00170527]
[1642518414787,0.59365568,3138.5,3137.1,6.15]
[1642518414985,0.384,3138.4,3137.1,6.15]
[1642518415236,0.384,3138.4,3137.2,3.4761413]
[1642518415237,0.00170527,3137.9,3137.2,3.4761413]
[1642518415433,0.13137896,3138.3,3138.2,1.14341427]
[1642518415632,0.1274,3138.3,3138.2,0.73811545]
[1642518415829,3.2263,3139.7,3139.1,4.95057374]
[1642518416028,3.5,3139.8,3139.1,4.90057374]
[1642518416228,0.00909477,3139.2,3139.1,4.90057374]
[1642518416828,0.00909477,3139.2,3139.1,7.20008846]
[1642518417028,0.00909477,3139.2,3139.1,4.90057374]
[1642518417531,0.79635,3139.3,3138.3,0.1274]
[1642518417729,0.79635,3139.3,3137.3,0.00170527]
[1642518417730,6.15,3139.0,3137.3,0.00170527]
[1642518417929,0.06151477,3138.8,3138.4,0.00454739]
[1642518418131,2.03801853,3138.4,3137.2,0.01136847]
[1642518418328,1.59317,3138.8,3137.7,0.01275829]
[1642518418528,0.79646,3138.9,3137.7,0.01275829]
[1642518418728,0.79646,3138.9,3137.8,0.0096632]
[1642518418981,1.51906196,3138.4,3137.8,0.0096632]
[1642518419381,2.31554196,3138.4,3137.3,0.1274]
[1642518419583,0.04254022,3138.3,3137.4,0.00227369]
[1642518419780,0.00284212,3138.3,3137.4,0.00227369]
[1642518419981,2.31554196,3138.4,3137.4,0.00227369]
[1642518419982,0.0022737,3138.2,3137.4,0.00227369]
[1642518420181,0.0022737,3138.2,3137.5,0.1274]
[1642518420383,1.10439496,3137.6,3137.5,0.1274]
[1642518420582,0.00170527,3138.1,3137.5,0.1274]
[1642518420787,0.0022737,3138.2,3137.5,0.1274]
[1642518420981,0.00113685,3138.0,3137.6,0.00113684]
[1642518421182,0.00170527,3138.1,3137.6,0.00113684]
[1642518421383,1.59303,3138.5,3137.6,0.00113684]
[1642518421588,1.1110741,3138.0,3137.6,0.00113684]
[1642518421883,6.15,3137.7,3136.9,6.42596826]
[1642518422083,6.15,3137.5,3135.7,6.49730401]
[1642518422287,0.384,3137.4,3137.0,0.00341054]
[1642518422488,0.79695,3137.3,3136.5,4.02236186]
[1642518422756,1.09695,3137.3,3136.6,0.00397897]
[1642518422947,1.33883423,3137.2,3136.6,0.00397897]
[1642518423148,3.45110234,3137.9,3136.6,0.00397897]
[1642518423350,0.79694,3137.2,3136.6,0.00397897]
[1642518423545,0.1275,3137.1,3136.5,0.04999894]
[1642518423947,0.0022737,3137.0,3136.5,0.84666894]
[1642518424148,0.0022737,3137.0,3136.9,6.16277274]
[1642518424346,3.47683364,3138.6,3136.9,9.67894782]
[1642518424347,1.27590735,3138.1,3136.9,9.67894782]
[1642518424546,1.27590735,3138.1,3136.9,9.66916782]
[1642518424945,0.79656,3138.0,3136.9,9.66916782]
[1642518425246,0.00738951,3137.9,3137.0,0.1274]
[1642518425446,0.00738951,3137.9,3137.6,2.0487923]
[1642518425644,5.8961,3139.4,3137.7,5.1]
[1642518425845,5.8961,3139.4,3137.8,0.03938921]
[1642518426049,0.00170527,3138.1,3137.8,0.03938921]
[1642518426245,0.00170527,3138.1,3137.7,5.1]
[1642518426246,0.79656,3138.0,3137.7,5.1]
[1642518426477,0.79656,3138.0,3137.6,0.01260803]
[1642518426478,0.79769685,3138.0,3137.8,0.1274]
[1642518426679,7.45080755,3138.6,3138.5,1.79348745]
[1642518426878,7.45080755,3138.6,3137.1,0.14027664]
[1642518427079,7.45080755,3138.6,3137.1,0.1274]
[1642518427080,0.00170527,3138.3,3137.1,0.1274]
[1642518427279,1.99157851,3137.9,3137.2,0.00454739]
[1642518427482,0.04558054,3137.7,3137.2,0.00454739]
[1642518427680,1.1808664,3137.7,3136.8,4.07166986]
[1642518427881,0.0022737,3137.6,3136.8,4.07166986]
[1642518428079,0.0022737,3137.6,3135.9,27.46582955]
[1642518428080,6.284,3137.5,3135.9,27.67809591]
[1642518428280,1.0,3137.4,3136.3,0.1274]
[1642518428479,1.11678782,3136.7,3136.6,1.71222557]
[1642518428683,1.41678782,3136.7,3135.8,7.94657999]
[1642518428879,1.54428782,3136.7,3135.8,4.04017999]
[1642518429078,1.54428782,3136.7,3135.8,3.91267999]
[1642518429281,1.54428782,3136.7,3135.7,0.1275]
[1642518429282,1.54428782,3136.7,3136.5,1.56511647]
[1642518429480,0.1275,3136.6,3136.3,2.34767471]
[1642518429681,0.04894826,3136.4,3135.9,0.00397896]
[1642518429882,0.04894826,3136.4,3135.6,3.91267999]
[1642518430082,1.18126,3136.3,3135.6,3.91267999]
[1642518430331,6.15,3136.1,3134.8,5.18899591]
[1642518430529,0.684,3136.1,3134.9,4.95]
[1642518430828,0.79731,3135.8,3135.7,2.10174239]
[1642518431027,0.79731,3135.8,3134.9,4.9596632]
[1642518431028,1.59446,3135.6,3135.0,5.60609704]
[1642518431231,1.59446,3135.6,3135.0,2.1292634]
[1642518431429,0.7973099,3135.5,3134.8,5.20154197]
[1642518431629,0.7973099,3135.5,3134.4,3.60433364]
[1642518431827,0.79741,3135.3,3134.9,0.0096632]
[1642518432027,0.3,3135.2,3134.4,0.1275]
[1642518432227,0.3,3135.2,3134.0,3.60433364]
[1642518432430,1.18258895,3135.1,3134.5,0.00227369]
[1642518432629,1.18258895,3135.1,3133.8,5.18899591]
[1642518432630,5.2,3134.9,3133.8,5.18899591]
[1642518432827,5.2,3134.9,3134.1,0.00227369]
[1642518432828,2.39305,3134.7,3134.1,0.00227369]
[1642518433028,0.384,3134.6,3134.1,0.00227369]
[1642518433228,0.384,3134.6,3134.2,1.9472769]
[1642518433229,0.5115,3134.6,3134.2,1.9472769]
[1642518433428,0.5115,3134.6,3134.5,6.52901451]
[1642518433628,0.79768,3134.7,3134.5,6.52901451]
[1642518433831,0.79768,3134.7,3134.5,5.0]
[1642518434080,0.00170527,3134.8,3134.6,3.34288468]
[1642518434280,5.27e-06,3134.8,3134.7,8.37220059]
[1642518434482,0.79724,3135.5,3134.7,12.54897739]
[1642518434680,0.79724,3135.5,3134.7,13.04616739]
[1642518434979,0.80122423,3135.5,3135.0,1.42645895]
[1642518435181,0.00398423,3135.5,3135.1,3.60328187]
[1642518435381,0.00398423,3135.5,3135.2,1.67827609]
[1642518435581,0.00398423,3135.5,3135.3,3.32645011]
[1642518435879,0.00398423,3135.5,3135.2,1.67827609]
[1642518436082,0.00398423,3135.5,3135.3,0.1275]
[1642518436281,0.384,3136.1,3135.4,3.35]
[1642518436484,0.384,3136.1,3135.9,2.01545843]
[1642518436780,3.05284212,3136.0,3135.1,3.12012984]
[1642518436979,0.30284212,3136.0,3135.1,3.96009519]
[1642518437181,1.5944963,3135.6,3134.6,5.18899591]
[1642518437480,3.23531825,3135.4,3134.7,0.00284211]
[1642518437729,4.83016825,3135.4,3135.2,1.81141725]
[1642518437930,6.03762052,3135.7,3134.7,0.00284211]
[1642518438130,1.384,3135.6,3135.3,0.00113684]
[1642518438332,1.384,3135.6,3134.7,0.00454738]
[1642518438532,1.35247905,3134.9,3134.6,5.18899591]
[1642518438732,3.33159905,3134.9,3134.3,5.18899591]
[1642518438933,3.33159905,3134.9,3134.4,1.65659321]
[1642518439234,3.33159905,3134.9,3134.7,2.28726653]
[1642518439235,4.2,3134.8,3134.7,2.28726653]
[1642518439431,0.30227369,3134.8,3134.7,2.28726653]
[1642518439631,0.30227369,3134.8,3134.6,2.02974757]
[1642518439632,0.1275,3134.7,3134.6,2.02974757]
[1642518439831,0.1275,3134.7,3134.6,2.13172329]
[1642518440032,0.12920527,3134.7,3134.6,2.13172329]
[1642518440231,0.12920527,3134.7,3134.3,0.83790348]
[1642518440431,0.12920527,3134.7,3133.6,6.48565544]
[1642518440632,1.59631684,3134.6,3133.6,6.48565544]
[1642518440831,1.59631684,3134.6,3133.7,0.00397897]
[1642518440832,1.09872684,3134.6,3133.7,0.00397897]
[1642518441033,0.5115,3134.5,3133.7,0.00397897]
[1642518441247,1.5115,3134.5,3133.7,0.00397897]
[1642518441786,1.59526,3134.3,3133.7,0.00397897]
[1642518442083,3.23466658,3134.2,3133.8,6.48565544]
[1642518442281,1.3,3134.1,3133.8,5.15905544]
[1642518442481,1.3801121,3134.1,3133.3,8.05804931]
[1642518442681,0.51320527,3134.0,3133.3,8.05804931]
[1642518442883,0.7977,3133.9,3133.4,0.00170527]
[1642518443084,1.59649685,3133.9,3133.4,0.00170527]
[1642518443782,1.59649685,3133.9,3132.9,0.00454739]
[1642518443982,0.79772,3133.6,3132.9,0.00454739]
[1642518444183,0.3,3133.5,3133.1,0.79763]
[1642518444582,1.89649685,3133.9,3133.2,0.00284212]
[1642518444982,1.89649685,3133.9,3133.8,1.96458699]
[1642518445630,2.39312,3134.3,3133.8,1.96458699]
[1642518445631,1.65934419,3134.3,3133.8,1.96458699]
[1642518445934,1.65934419,3134.3,3133.1,9.26028092]
[1642518445935,1.47223644,3133.8,3133.1,9.26028092]
[1642518446130,0.384,3133.7,3133.1,8.05918616]
[1642518446332,1.59568,3133.6,3133.2,0.00397897]
[1642518446530,0.1275,3133.7,3133.2,0.00397897]
[1642518446831,0.5115,3133.7,3133.2,0.00397897]
[1642518447033,1.5115,3133.7,3133.2,0.00397897]
[1642518447231,1.5115,3133.7,3133.5,5.35949534]
[1642518447432,3.1913434,3133.8,3133.5,5.35949534]
[1642518447630,4.284,3133.7,3133.6,0.00284212]
[1642518447831,0.384,3133.7,3133.6,0.00284212]
[1642518448032,1.59573,3133.6,3133.3,4.01943682]
[1642518448232,0.8232719,3133.8,3133.4,3.05]
[1642518448431,0.384,3133.7,3133.4,0.00397897]
[1642518448632,0.384,3133.7,3133.5,0.00341055]
[1642518448832,0.384,3133.7,3133.4,0.00397897]
[1642518449084,0.384,3133.7,3133.5,0.00341055]
[1642518449285,0.384,3133.7,3133.4,0.00397897]
[1642518449488,0.384,3133.7,3133.6,0.00284212]
[1642518449689,2.10256502,3133.2,3133.1,0.00568424]
[1642518449893,2.40256502,3133.2,3133.1,0.00568424]
[1642518450087,3.40256502,3133.2,3133.1,0.00568424]
[1642518450286,3.40256502,3133.2,3132.8,0.00738951]
[1642518451090,1.9800714,3133.1,3132.7,0.00795793]
[1642518451287,4.3745641,3133.1,3132.7,0.00795793]
[1642518451486,4.85,3132.9,3131.9,0.1275]
[1642518451687,1.384,3132.8,3131.7,0.13968173]
[1642518451886,1.384,3132.8,3132.0,0.00397897]
[1642518452090,2.20497384,3132.4,3132.0,0.00397897]
[1642518452291,0.7981,3132.4,3132.0,0.00397897]
[1642518452590,0.3,3132.4,3132.0,0.00397897]
[1642518452838,0.12920527,3133.0,3132.0,0.00397897]
[1642518453036,2.2581533,3134.7,3134.1,1.87462901]
[1642518453236,0.79754,3134.6,3134.3,0.04486989]
[1642518453435,0.75629598,3134.6,3134.3,0.01298747]
[1642518453633,0.75629598,3134.6,3134.1,1.08624708]
[1642518453833,0.75629598,3134.6,3133.5,0.01265919]
[1642518454034,0.75629598,3134.6,3133.6,0.1275]
[1642518454236,0.1275,3134.5,3133.6,0.1275]
[1642518454435,2.9909136,3134.1,3133.5,1.75113516]
[1642518454836,0.13318423,3134.0,3133.5,1.75113516]
[1642518455036,0.13318423,3134.0,3132.6,3.4954305]
[1642518455037,0.01398445,3133.8,3132.6,3.4954305]
[1642518455236,0.384,3133.7,3132.4,5.33859315]
[1642518455437,0.81742201,3133.6,3133.2,6.16218299]
[1642518455642,4.58763736,3133.8,3133.7,6.15]
[1642518455643,0.0778384,3133.8,3133.7,6.15]
[1642518455839,1.1275,3134.5,3133.7,6.15]
[1642518455840,0.1275,3134.5,3133.7,6.15]
[1642518456035,0.1275,3133.9,3133.7,6.15]
[1642518456235,0.12863685,3133.9,3133.7,6.15]
[1642518456485,2.43816164,3133.9,3133.6,0.1275]
[1642518456885,2.31066164,3133.9,3133.6,0.1275]
[1642518457084,2.61066164,3133.9,3133.3,0.00227369]
[1642518457285,2.31066164,3133.9,3133.3,0.00227369]
[1642518457489,2.31066164,3133.9,3133.7,2.71707026]
[1642518458286,2.31066164,3133.9,3133.3,0.1275]
[1642518458486,2.61066164,3133.9,3133.3,0.1275]
[1642518458685,3.40839164,3133.9,3133.4,0.00170527]
[1642518458890,4.20612164,3133.9,3133.8,2.71707026]
[1642518459486,4.33362164,3133.9,3133.8,2.71707026]
[1642518459787,4.33362164,3133.9,3133.4,0.00170527]
[1642518459989,0.30113685,3133.9,3133.4,0.00170527]
[1642518460237,0.00113685,3133.9,3133.4,0.12920527]
[1642518460636,0.00113685,3133.9,3133.5,0.00113685]
[1642518461233,0.79879685,3133.9,3133.5,0.00113685]
[1642518461433,1.09879685,3133.9,3133.4,0.00170527]
[1642518461633,1.84836838,3133.7,3133.4,2.71708472]
[1642518461834,0.3,3133.6,3133.4,2.71708472]
[1642518462037,0.3,3133.6,3133.5,0.00113685]
[1642518462638,0.3,3133.6,3133.4,0.00170527]
[1642518462936,1.09879685,3133.9,3133.6,0.89999999]
[1642518463536,3.1905621,3135.2,3134.1,2.45094433]
[1642518463737,0.7976241,3134.4,3134.1,2.45094433]
[1642518463986,9.5391,3135.6,3134.1,5.60860175]
[1642518464185,0.1275,3135.0,3134.2,0.03972048]
[1642518464384,0.1275,3135.0,3134.2,1.08392048]
[1642518464584,0.1275,3135.2,3134.3,3.26848311]
[1642518464784,1.80998022,3135.1,3134.6,1.50447466]
[1642518464986,0.00682108,3135.1,3134.6,4.57478293]
[1642518465191,0.1275,3135.2,3134.6,4.57478293]
[1642518465192,0.00625266,3135.0,3134.6,4.57478293]
[1642518465586,0.00568423,3134.9,3134.6,4.57478293]
[1642518465986,0.00511581,3134.8,3134.6,4.57478293]
[1642518466190,0.00511581,3134.8,3134.7,9.43912208]
[1642518466388,0.08820103,3135.5,3134.7,9.43912208]
[1642518466389,0.08820103,3135.5,3135.2,3.47776955]
[1642518466585,0.08820103,3135.5,3134.7,9.56662208]
[1642518466586,0.08820103,3135.5,3134.7,12.2837068]
[1642518466787,0.00852635,3135.4,3134.7,12.2837068]
[1642518467185,0.00795793,3135.3,3134.7,12.2837068]
[1642518467387,0.00795793,3135.3,3134.7,8.86708472]
[1642518467586,0.0073895,3135.2,3134.8,2.71708472]
[1642518467844,2.31241048,3135.1,3134.8,2.71708472]
[1642518468037,2.61923156,3135.1,3134.8,2.71708472]
[1642518468236,0.00625266,3135.0,3134.8,2.71708472]
[1642518468637,4.00568423,3134.9,3134.8,2.71708472]
[1642518469036,4.43318423,3134.9,3134.8,2.71708472]
[1642518469236,0.43318423,3134.9,3134.8,2.71708472]
[1642518469436,1.64597127,3134.9,3134.8,2.71708472]
[1642518469839,1.59597127,3134.9,3134.4,2.71708472]
[1642518470038,2.24621117,3134.5,3134.4,2.71708472]
[1642518470237,0.7975,3134.6,3134.4,2.71708472]
[1642518470438,0.00341054,3134.5,3134.4,2.71708472]
[1642518471038,0.13091054,3134.5,3134.4,2.71708472]
[1642518471690,0.00341054,3134.5,3134.4,2.71708472]
[1642518472086,1.89998608,3134.5,3134.4,2.71708472]
[1642518472887,0.00341054,3134.5,3134.4,2.71708472]
[1642518473487,0.00341054,3134.5,3134.4,6.41708472]
[1642518473687,0.00341054,3134.5,3134.4,9.41379435]
[1642518473889,0.00341054,3134.5,3134.4,6.41708472]
[1642518475343,0.00341054,3134.5,3134.4,9.428957]
[1642518475539,0.00341054,3134.5,3134.4,6.41708472]
[1642518475743,0.00341054,3134.5,3134.4,9.43011255]
[1642518475940,0.00341054,3134.5,3134.4,6.36708472]
[1642518476140,0.00341054,3134.5,3134.4,9.38183885]
[1642518476342,0.00341054,3134.5,3134.4,2.66708472]
[1642518478646,0.00341054,3134.5,3134.2,1.6071423]
[1642518479091,7.13687415,3134.4,3134.2,1.6071423]
[1642518479291,7.13687415,3134.4,3134.1,2.45094433]
[1642518479292,0.3,3134.3,3134.1,2.45094433]
[1642518479492,0.30227369,3134.3,3134.1,2.45094433]
[1642518479691,0.00170527,3134.2,3134.1,2.45094433]
[1642518480493,0.00170527,3134.2,3134.1,8.60094433]
[1642518480897,0.00170527,3134.2,3134.1,11.85429494]
[1642518481294,5.27e-06,3134.2,3134.1,15.47231827]
[1642518481493,0.1275,3135.0,3134.1,13.33393724]
[1642518481694,0.7973,3135.3,3134.1,13.33393724]
[1642518481892,0.00397896,3134.9,3134.1,13.33393724]
[1642518482093,0.00397896,3134.9,3134.1,8.60094433]
[1642518482294,0.00341054,3134.8,3134.1,2.45094433]
[1642518482494,1.87250244,3134.4,3134.1,2.45094433]
[1642518482933,2.17250244,3134.4,3134.3,1.61864608]
[1642518483333,2.17363929,3134.4,3134.3,1.61864608]
[1642518483638,2.97114929,3134.4,3134.1,2.45094433]
[1642518483833,2.17363929,3134.4,3134.1,2.45094433]
[1642518485242,2.97116929,3134.4,3134.1,2.45094433]
[1642518485636,2.17363929,3134.4,3134.1,2.45094433]
[1642518485835,5.37363929,3134.4,3134.1,2.45094433]
[1642518486340,0.1275,3134.3,3134.1,2.45094433]
[1642518486593,0.92504,3134.3,3134.1,2.45094433]
[1642518487392,1.27266326,3134.2,3134.1,2.45094433]
[1642518487792,1.70016326,3134.2,3134.1,2.45094433]
[1642518488393,1.70016326,3134.2,3133.8,0.1275]
[1642518488695,6.9479,3134.1,3133.9,0.00170527]
[1642518488896,3.534,3134.0,3133.9,0.00170527]
[1642518489094,0.684,3134.0,3133.7,0.00284212]
[1642518489294,1.99713765,3133.9,3133.7,0.00284212]
[1642518489495,2.68113765,3133.9,3133.7,0.00284212]
[1642518489695,0.1275,3133.8,3133.7,0.00284212]
[1642518490094,3.0,3133.7,3133.6,0.89999999]
[1642518490341,5.1,3133.6,3132.8,0.1275]
[1642518490538,1.0,3133.3,3132.7,1.61864608]
[1642518490737,2.26879586,3132.9,3132.7,1.61864608]
[1642518491039,0.3,3132.9,3132.7,1.61864608]
[1642518491439,0.3,3133.0,3132.6,1.61864608]
[1642518491638,1.59573,3133.5,3132.6,1.61864608]
[1642518491835,1.59573,3133.5,3132.7,0.00568423]
[1642518492036,1.54188948,3133.2,3132.7,0.00568423]
[1642518492245,1.8959,3133.0,3132.7,0.00568423]
[1642518492636,1.8959,3133.0,3132.8,1.61864608]
[1642518492836,1.09795,3133.0,3132.8,1.61864608]
[1642518493038,1.09795,3133.0,3132.9,0.00454739]
[1642518493637,1.09795,3133.0,3132.9,2.03092796]
[1642518493838,0.1275,3133.6,3132.9,2.03092796]
[1642518494089,3.73829383,3134.1,3133.0,0.11773502]
[1642518494090,0.1275,3134.0,3133.0,0.11773502]
[1642518494387,0.00113685,3133.9,3133.1,0.00341054]
[1642518494585,0.79776,3133.8,3133.1,0.00341054]
[1642518494786,0.79775,3133.6,3133.0,5.4842014]
[1642518495085,1.09775,3133.6,3133.1,0.00341054]
[1642518495293,1.09775,3133.6,3133.3,1.54864757]
[1642518495687,0.1275,3133.9,3133.3,1.54864757]
[1642518495688,0.1275,3133.9,3133.4,0.00170527]
[1642518495890,0.79939527,3134.0,3133.4,0.00170527]
[1642518495891,0.00170527,3134.0,3133.5,2.08849202]
[1642518496195,0.1275,3134.5,3133.5,2.08849202]
[1642518496196,0.00113685,3133.9,3133.5,3.68347202]
[1642518496591,2.01749873,3134.1,3133.5,3.68347202]
[1642518496787,0.797624,3134.2,3133.8,1.27439652]
[1642518496989,0.79763,3133.9,3133.4,0.12920527]
[1642518497389,1.09763,3133.9,3133.6,0.1275]
[1642518498143,2.80398556,3133.8,3133.6,0.1275]
[1642518498841,0.1275,3133.7,3133.6,0.1275]
[1642518499246,4.13277399,3133.7,3133.5,0.00113685]
[1642518499443,1.88277399,3133.7,3133.5,0.00113685]
[1642518499643,1.88277399,3133.7,3133.1,0.00341054]
[1642518499644,1.0980751,3133.6,3133.1,0.00341054]
[1642518499845,1.18206,3133.5,3132.7,2.42796911]
[1642518500045,1.59624,3133.4,3132.9,1.62028553]
[1642518500246,6.15,3133.2,3132.6,2.42796911]
[1642518500445,4.06010632,3133.1,3132.6,2.42796911]
[1642518500646,4.06010632,3133.1,3131.9,8.07542121]
[1642518500647,8.54494,3133.0,3131.9,8.07542121]
[1642518500856,0.7983415,3132.7,3131.9,8.07542121]
[1642518501048,1.0,3132.4,3132.0,0.00454739]
[1642518501250,6.15,3132.3,3131.3,3.9077]
[1642518501494,2.00410795,3131.7,3131.3,3.9077]
[1642518501686,2.00410795,3131.7,3131.4,0.00341054]
[1642518501687,3.30083913,3131.7,3131.4,0.00341054]
[1642518502084,3.30083913,3131.7,3131.3,0.00397896]
[1642518502288,4.89772613,3131.7,3131.3,0.00397896]
[1642518502486,4.292191,3131.7,3131.3,0.00397896]
[1642518503291,4.292191,3131.7,3131.1,0.00511581]
[1642518503491,2.695297,3131.7,3131.1,0.00511581]
[1642518503690,2.695297,3131.7,3131.2,1.86334777]
[1642518503892,1.89685,3131.7,3131.6,1.43543535]
[1642518504093,0.1277,3132.1,3131.6,1.43543535]
[1642518504395,0.79930685,3132.2,3131.6,1.43543535]
[1642518504396,0.79930685,3132.2,3131.7,0.03762075]
[1642518504592,0.00113685,3132.2,3131.7,0.03762075]
[1642518504792,1.36320446,3132.1,3131.8,2.30240803]
[1642518504995,1.36320446,3132.1,3131.3,1.59613]
[1642518504996,0.01187763,3132.0,3131.3,1.59613]
[1642518505236,0.00113685,3132.0,3130.8,7.38714]
[1642518505438,0.00113685,3132.0,3131.4,0.0022737]
[1642518506537,0.00113685,3132.0,3131.8,1.21181237]
[1642518507138,0.88623103,3132.8,3132.0,0.0442816]
[1642518507339,0.1277,3132.7,3132.0,0.0442816]
[1642518507538,0.13167896,3132.7,3132.0,0.0442816]
[1642518507739,0.00397896,3132.7,3132.0,4.0099816]
[1642518508038,0.00397896,3132.7,3132.0,4.84066232]
[1642518508239,0.00397896,3132.7,3132.2,1.59559]
[1642518508437,0.00397896,3132.7,3132.3,1.35246364]
[1642518508739,0.00397896,3132.7,3132.3,1.65246364]
[1642518508993,0.00397896,3132.7,3132.4,0.1276]
[1642518509187,0.00397896,3132.7,3132.5,0.79783]
[1642518509590,0.00397896,3132.7,3132.5,1.09783]
[1642518509788,0.00397896,3132.7,3132.6,8.25166727]
[1642518511391,7.896e-05,3132.7,3132.6,8.25166727]
[1642518511590,7.896e-05,3132.7,3132.6,14.87742263]
[1642518511789,7.896e-05,3132.7,3132.6,7.74545]
[1642518511990,3.20007896,3132.7,3132.6,7.74545]
[1642518512192,3.20007896,3132.7,3132.6,8.04545]
[1642518512933,3.20007896,3132.7,3132.6,11.22730797]
[1642518513133,3.20007896,3132.7,3132.6,12.83939194]